Cogmind - Beta 14 @@@ ROGUE MODE // 2025.01.18 @ 13:30:12 Player: K.Ioz Result: Destroyed by G-67 Veteran with Plasma Rifle Performance ------------- Evolutions (4) 2000 Regions Visited (5) 1000 Robots Destroyed (119) 595 Value Destroyed (4559) 4559 Prototype IDs (15) 300 Alien Tech Used (0) 0 Bonus (1345) 1345 TOTAL SCORE: 9799 Bonus ------- High Alert Combat Kills 972 Follower Combat Kills 190 Registered with UFD 300 Friendly Fire -117 Cogmind --------- Core Integrity 0/850 Matter 179/300 Energy 122/290 System Corruption 20% Temperature Cool (0) Movement Rolling (125) Ox3 Location -6/Factory Parts ------- > --- POWER (1) -------- Reinforced Deuterium Engine > --- PROPULSION (3) --- Light Treads Wheel Wheel > --- UTILITY (8) ------ Advanced Heat Sink Advanced Heat Sink Large Storage Unit Structural Scanner Triangulator Kinecellerator Layered Medium Armor Plating > --- WEAPON (3) ------- Proton Cannon Heavy Machine Gun Heavy Machine Gun > --- INVENTORY (15) --- Reinforced Deuterium Engine Angular Momentum Engine Angular Momentum Engine Energy Well (350) Matter Compressor (216) High-powered Tractor Beam Heavy Laser Heavy Laser Proton Cannon Proton Cannon Proton Cannon Proton Cannon Rocket Launcher CPS Tube (1) Axe Peak State ------------ > --- POWER ------------ Angular Momentum Engine > --- PROPULSION ------- Arachnoskeleton > --- UTILITY ---------- Improved Heat Sink Advanced Heat Sink Large Storage Unit Core Analyzer Hardened Heavy Armor Plating Layered Light Armor Plating Hacking Suite > --- WEAPON ----------- Proton Cannon Plasma Cannon Coil Gun > --- INVENTORY -------- Angular Momentum Engine Light Treads Light Treads Improved Treads Improved Medium Treads Improved Heat Sink Energy Well Matter Compressor Improved Melee Analysis Suite Weapon Cycler Reaction Control System High-powered Shock Rifle Rocket Launcher CPS Tube Makeshift Axe [Rating: 73] Favorites ----------- Power Cooled Ion Engine Engine Cooled Ion Engine Propulsion Light Treads Treads Light Treads Leg Arachnoskeleton Wheel Wheel Utility Large Storage Unit Device Improved Heat Sink Storage Large Storage Unit Processor Core Analyzer Hackware Hacking Suite Protection Medium Armor Plating Weapon Subdweller Beam Cannon Energy Gun Heavy Laser Energy Cannon Subdweller Beam Cannon Ballistic Gun Heavy Assault Rifle Ballistic Cannon Magnetic Acceleration Cannon Launcher Rocket Launcher Special Weapon CPS Tube Slashing Weapon Makeshift Axe Build | -11 -10 -10 -9 -9 -6 ------- Run | Yrd Mat Sub Rec Scr Fac Slots Evolved 8 | . . . . . 8 Power . | . . . . . . Propulsion 1 | . . . . . 1 Utility 6 | . . . . . 6 Weapon 1 | . . . . . 1 Parts Attached 147 | 6 9 22 5 20 85 Power 13 | 1 3 1 . 3 5 Engine 13 | 1 3 1 . 3 5 Core . | . . . . . . Reactor . | . . . . . . Propulsion 23 | 2 . 3 1 5 12 Treads 17 | 2 . 3 1 3 8 Leg 1 | . . . . . 1 Wheel 5 | . . . . 2 3 Hover . | . . . . . . Flight . | . . . . . . Utility 55 | 1 3 6 2 5 38 Device 23 | . . 3 . 2 18 Storage 4 | 1 1 1 . 1 . Processor 2 | . . . . . 2 Hackware 2 | . . . . . 2 Protection 24 | . 2 2 2 2 16 Artifact . | . . . . . . Weapon 56 | 2 3 12 2 7 30 Energy Gun 3 | . . . . . 3 Energy Cannon 11 | . . 3 . 1 7 Ballistic Gun 28 | 2 3 7 1 6 9 Ballistic Cannon 5 | . . . . . 5 Launcher 4 | . . . . . 4 Special Weapon 1 | . . . . . 1 Impact Weapon . | . . . . . . Slashing Weapon 4 | . . 2 1 . 1 Piercing Weapon . | . . . . . . Special Melee Weapon . | . . . . . . Unidentified Prototypes 1 | . 1 . . . . Parts Lost 44 | . . 9 1 . 34 Power 3 | . . 1 . . 2 Propulsion 12 | . . 3 1 . 8 Utility 17 | . . 2 . . 15 Weapon 12 | . . 3 . . 9 Highest Loss Streak 12 | . . 3 1 . 12 To Critical Strikes 1 | . . . . . 1 Average Slot Usage (%) 93 | . 99 98 99 96 80 Engine 12 | . 13 14 14 14 5 Treads 22 | . 28 28 28 27 6 Leg 1 | . . . . . 4 Device 3 | . . 2 1 . 14 Storage 12 | . 14 13 14 14 5 Protection 13 | . 13 11 12 13 13 Energy Cannon 9 | . . 2 14 13 8 Ballistic Gun 13 | . 28 23 12 10 7 Peak Build Rating 73 | 6 12 18 19 20 73 Average Rating 26 | 3 9 14 16 17 62 On Entrance 11 | . 6 12 16 17 20 Naked Turns . | . . . . . . Heaviest Build 90 | 14 36 40 46 46 90 Greatest Support 90 | 40 40 40 40 43 90 Greatest Overweight (x) 6 | . . . 1 1 6 Average Overweight (x) . | . . . . . 1 Largest Inventory Capacity 15 | 8 15 15 15 15 15 Average Capacity 14 | 6 14 14 15 15 15 Most Carried 15 | 6 15 15 15 15 15 Average Carried 14 | 3 14 14 14 14 13 Final Capacity 15 | 8 15 15 15 15 15 Final Carried 15 | 6 15 15 15 15 15 Class Distribution -------------------- 77% | Mutant 15% | Scavenger-Tank 3% | Tank Dominant Class ---------------- Mutant | -10/Materials Mutant | -10/Subcaves Mutant | -9/Recycling Mutant | -9/Scraptown Scavenger-Tank | -6/Factory Resources | -11 -10 -10 -9 -9 -6 ----------- Run | Yrd Mat Sub Rec Scr Fac Matter Collected 5601 | 228 406 762 447 260 3498 Remotely . | . . . . . . Salvage Created 5116 | . 400 550 114 . 4052 Parts 263 | . 28 34 9 . 192 Haulers Intercepted 2 | . 2 . . . . Recyclers Shooed 12 | . 1 . . . 11 Parts Field Recycled . | . . . . . . Retrieved Matter . | . . . . . . Parts Self-Destructed 9 | . . 9 . . . Prevented . | . . . . . . Kills | -11 -10 -10 -9 -9 -6 ------- Run | Yrd Mat Sub Rec Scr Fac Combat Hostiles Destroyed 85 | . 9 14 2 . 60 Melee 1 | . . 1 . . . Guns 36 | . 9 12 . . 15 Cannons 40 | . . 1 2 . 37 AOE 3 | . . . . . 3 Classes Destroyed 20 | . 5 3 1 . 11 Worker 11 | . . . . . 11 Builder 8 | . . . . . 8 Hauler 2 | . 2 . . . . Recycler 5 | . . . . . 5 Mechanic 1 | . . . . . 1 Operator 1 | . 1 . . . . Turret 1 | . . 1 . . . Watcher 5 | . 1 . . . 4 Swarmer 10 | . 5 3 . . 2 Saboteur 1 | . . . . . 1 Grunt 26 | . 4 2 . . 20 Brawler 7 | . . . . . 7 Duelist 6 | . . . . . 6 Sentry 6 | . . . 2 . 4 Hunter 9 | . . . . . 9 Programmer 9 | . . . . . 9 Behemoth 1 | . . . . . 1 Cobbler 1 | . . 1 . . . Subdweller 9 | . . 9 . . . Scrapoid 1 | . . . . . 1 Best Kill Streak 7 | . 3 3 1 . 7 Combat Bots Only 5 | . 3 3 1 . 5 Max Kills in Single Turn 4 | . 1 1 1 . 4 Gunslinging . | . . . . . . Exploded 1 | . . . . . 1 Melee 1 | . . 1 . . . Uniques/NPCs Destroyed . | . . . . . . Combat | -11 -10 -10 -9 -9 -6 -------- Run | Yrd Mat Sub Rec Scr Fac Hostile Shots Fired 840 | . 49 146 6 . 639 Missed 253 | . 12 49 3 . 189 Damage Taken 10329 | . 381 1590 40 . 8318 Core 1080 | . 34 181 . . 865 Absorbed by Shields . | . . . . . . Ignored by Resistances 484 | . . . . . 484 Regen/Repaired (Parts) 918 | . . . . . 918 Core Remaining (%) 57 | 100 . . . 14 . Volleys Fired 339 | . 35 85 5 . 214 Largest 3 | . 2 2 2 . 3 Hottest 223 | . 43 140 140 . 223 Shots Fired 792 | . 70 161 12 . 549 Gun 409 | . 70 150 3 . 186 Cannon 377 | . . 11 9 . 357 Launcher 5 | . . . . . 5 Special 1 | . . . . . 1 Kinetic 517 | . 70 150 3 . 294 Thermal 210 | . . 11 9 . 190 Explosive 5 | . . . . . 5 Electromagnetic 59 | . . . . . 59 Robot Hit Streak 22 | . 9 22 4 . 16 Robot Miss Streak 7 | . 3 4 1 . 7 Penetration Max 2 | . . . . . 2 Secondary Targets 1 | . . 1 . . . Max Gunslinging Chain 1 | . . 1 . . . Shots Hit Robots 503 | . 46 111 7 . 339 Core Hits 254 | . 19 27 3 . 205 Critical Kills 8 | . 1 . . . 7 Critical Parts Destroyed 2 | . 1 . . . 1 Critical Strikes 17 | . 2 . . . 15 Meltdown 5 | . . . . . 5 Destroy 5 | . 2 . . . 3 Blast 7 | . . . . . 7 Melee Attacks 12 | . . 11 . . 1 Impact . | . . . . . . Slashing 12 | . . 11 . . 1 Piercing . | . . . . . . Sneak Attacks . | . . . . . . Combat Hostiles . | . . . . . . Follow-up Attacks . | . . . . . . Damage Inflicted 13153 | . 643 2018 162 . 10330 Guns 4935 | . 638 1687 16 . 2594 Cannons 6853 | . . 191 146 . 6516 Explosions 1208 | . . . . . 1208 Melee 140 | . . 140 . . . Ramming 17 | . 5 . . . 12 Kinetic 7149 | . 638 1687 16 . 4808 Thermal 4483 | . . 191 146 . 4146 Explosive 540 | . . . . . 540 Electromagnetic 824 | . . . . . 824 Impact . | . . . . . . Slashing 140 | . . 140 . . . Piercing . | . . . . . . Highest Corruption 20 | . 2 2 2 . 20 Average Corruption 4 | . 2 2 2 . 9 Corruption Purged . | . . . . . . Corruption Blocked . | . . . . . . Effects 181 | . 21 33 29 . 98 Message Errors 43 | . 6 10 8 . 19 Matter Fused 43 | . 6 3 9 . 25 Heat Flow Errors 22 | . 1 6 3 . 12 Energy Discharges 14 | . 3 2 1 . 8 Parts Fused 1 | . 1 . . . . Data Loss (minor) 30 | . 3 6 6 . 15 Data Loss (major) 6 | . 1 . . . 5 Misfires 10 | . . 3 2 . 5 Alerts 3 | . . 2 . . 1 Weapon Failures 9 | . . 1 . . 8 Overload Shots . | . . . . . . Overflow Damage 247 | . . . . . 247 Projectiles 114 | . . . . . 114 Explosions 133 | . . . . . 133 Melee . | . . . . . . Knockbacks 49 | . . . . . 49 Impact . | . . . . . . Kinetic 44 | . . . . . 44 Secondary 5 | . . . . . 5 Self-Inflicted Damage 415 | . . . . . 415 Shots 5 | . . . . . 5 Rammed 4 | . 1 . . . 3 Targets Rammed 4 | . 1 . . . 3 Kicked . | . . . . . . Crushed . | . . . . . . Highest Temperature 470 | . 112 470 263 . 283 Average Temperature 80 | . 18 135 84 . 75 Received Heat Transfer 2825 | . 135 1344 9 . 1337 Effects 5 | . . 2 2 . 1 Energy Bleed 1 | . . . . . 1 Interference 4 | . . 2 2 . . Siege Activations . | . . . . . . Robots Corrupted . | . . . . . . Combat Hostiles . | . . . . . . Parts Fried 3 | . . . . . 3 Impact Corruptions 1 | . . . . . 1 Robots Melted 5 | . . . . . 5 Combat Hostiles 5 | . . . . . 5 Parts Melted 12 | . . 1 . . 11 Heat Transferred 6407 | . . 296 222 . 5889 Parts Sabotaged . | . . . . . . Parts Stolen . | . . . . . . Parts Stripped . | . . . . . . Power Chain Reactions . | . . . . . . Alert | -11 -10 -10 -9 -9 -6 ------- Run | Yrd Mat Sub Rec Scr Fac Peak Influence 1394 | . 121 . 143 . 1394 Initial 72 | . . . 72 . . Average 234 | . 36 . 28 . 442 Maximum Alert Level 4 | . . . . . 4 Low Security (%) 67 | 100 100 . 100 . 35 Level 1 9 | . . . . . 20 Level 2 13 | . . . . . 26 Level 3 4 | . . . . . 9 Level 4 4 | . . . . . 9 Level 5 . | . . . . . . High Security . | . . . . . . Max Security . | . . . . . . Squads Dispatched 20 | . 1 . . . 19 Investigation 3 | . . . . . 3 Extermination 8 | . . . . . 8 Reinforcement 5 | . 1 . . . 4 Assault 4 | . . . . . 4 Garrison . | . . . . . . Intercept . | . . . . . . Searches Triggered . | . . . . . . Construction Impeded 3 | . . . . . 3 Haulers Reinforced 1 | . . . . . 1 Active Scanning Responses . | . . . . . . Cargo Convoy Interrupts . | . . . . . . Stealth | -11 -10 -10 -9 -9 -6 --------- Run | Yrd Mat Sub Rec Scr Fac Distress Signals 3 | . 2 . . . 1 Communications Jammed . | . . . . . . Distress Signals . | . . . . . . Times Spotted 151 | . 21 21 2 . 107 Peak Tracking Total 10 | . 3 6 1 . 10 Tactical Retreats 7 | . . 5 . . 2 Traps | -11 -10 -10 -9 -9 -6 ------- Run | Yrd Mat Sub Rec Scr Fac Traps Triggered 5 | . 3 . . . 2 Indirectly . | . . . . . . Trap Hack Attempts . | . . . . . . Triggered . | . . . . . . Disarmed . | . . . . . . Reprogrammed . | . . . . . . Reused . | . . . . . . Traps Extracted . | . . . . . . Installed . | . . . . . . Triggered . | . . . . . . Machines | -11 -10 -10 -9 -9 -6 ---------- Run | Yrd Mat Sub Rec Scr Fac Machines Disabled 30 | . . 3 . . 27 Max in Single Turn 11 | . . 1 . . 11 Garrison Access 2 | . . . . . 2 Machines Repaired . | . . . . . . Machines Dismantled . | . . . . . . Machines Sabotaged . | . . . . . . Overloaded Fab Kills . | . . . . . . Hacking | -11 -10 -10 -9 -9 -6 --------- Run | Yrd Mat Sub Rec Scr Fac Machines Accessed 43 | . 6 1 10 7 19 Terminals 21 | . 6 . 6 . 9 Fabricators 4 | . . . . . 4 Repair Stations 3 | . . . . . 3 Recycling Units 5 | . . . 4 . 1 Scanalyzers . | . . . . . . Garrison Access 2 | . . . . . 2 Total Hacks 117 | . 13 9 24 30 41 Successful 77 | . 6 9 11 30 21 Failed 39 | . 7 . 12 . 20 Catastrophic 9 | . 3 . . . 6 Database Lockouts 1 | . . . 1 . . Manual 58 | . 11 . 24 . 23 Terminals 53 | . 13 . 17 . 23 Fabricators 6 | . . . . . 6 Repair Stations 9 | . . . . . 9 Recycling Units 8 | . . . 7 . 1 Scanalyzers . | . . . . . . Garrison Access 2 | . . . . . 2 Terminal Hacks 44 | . 1 9 2 30 2 Record 33 | . . 8 . 25 . Robot Analysis 6 | . . . 1 5 . Prototype ID Bank 1 | . 1 . . . . Repair Station Index 1 | . . . . . 1 Unreport Threat 1 | . . . . . 1 Locate Traps 1 | . . . 1 . . Derelict Proto ID Bank 1 | . . 1 . . . Fabricator Hacks 1 | . . . . . 1 Network Status 1 | . . . . . 1 Repair Station Hacks 8 | . . . . . 8 Scan Component 4 | . . . . . 4 Repair 4 | . . . . . 4 Recycling Unit Hacks . | . . . . . . Scanalyzer . | . . . . . . Garrison Access Hacks 2 | . . . . . 2 Seal Access 2 | . . . . . 2 Unauthorized Hacks 22 | . 5 . 9 . 8 Terminals 15 | . 5 . 5 . 5 Botnet 1 | . . . . . 1 Skim 14 | . 5 . 5 . 4 Fabricators 2 | . . . . . 2 Report 1 | . . . . . 1 Prioritize 1 | . . . . . 1 Repair Stations 1 | . . . . . 1 Recycling Units 4 | . . . 4 . . Tunnel 4 | . . . 4 . . Fedlink 1 | . . . . . 1 Scanalyzers . | . . . . . . Garrison Access . | . . . . . . Data Cores Recovered . | . . . . . . Used . | . . . . . . Hacking Detections 26 | . 6 . 7 . 13 Full Trace Events 3 | . . . 1 . 2 Feedback Events . | . . . . . . Feedback Blocked . | . . . . . . Robot Schematics Acquired . | . . . . . . Robots Built . | . . . . . . Authchips . | . . . . . . Time . | . . . . . . Total Robot Build Rating . | . . . . . . Part Schematics Acquired . | . . . . . . Parts Built . | . . . . . . Authchips . | . . . . . . Time . | . . . . . . Total Part Build Rating . | . . . . . . Parts Repaired 4 | . . . . . 4 Time 136 | . . . . . 136 Parts Recycled . | . . . . . . Recycled Matter . | . . . . . . Retrieved Matter . | . . . . . . Retrieved Components . | . . . . . . Parts Scanalyzed . | . . . . . . Part Schematics Acquired . | . . . . . . Parts Damaged . | . . . . . . Bothacking | -11 -10 -10 -9 -9 -6 ------------ Run | Yrd Mat Sub Rec Scr Fac Used RIF Installer . | . . . . . . Robots Hacked . | . . . . . . Non-combat . | . . . . . . Combat . | . . . . . . Robot Hacks Applied . | . . . . . . Relay Couplers Released 4 | . . . . . 4 Programmers 4 | . . . . . 4 Fabnet Peak Effective % . | . . . . . . Robots Rewired . | . . . . . . Allies Hacked . | . . . . . . Hacks Repelled . | . . . . . . Allies | -11 -10 -10 -9 -9 -6 -------- Run | Yrd Mat Sub Rec Scr Fac Total Allies 7 | . . . . 1 6 Largest Group 5 | . . . . 1 5 Highest-Rated Group 241 | . . . . 56 241 Highest-Rated Ally 56 | . . . . 56 56 Total Orders . | . . . . . . Ally Attacks 63 | . . . . . 63 Total Damage 1086 | . . . . . 1086 Kills 8 | . . . . . 8 Allies Corrupted . | . . . . . . Allies Melted . | . . . . . . Intel | -11 -10 -10 -9 -9 -6 ------- Run | Yrd Mat Sub Rec Scr Fac Robot Analysis Total 6 | . . . 1 5 . Derelict Logs Recovered 5 | . . 1 . 4 . Drone Launches . | . . . . . . Drone Recoveries . | . . . . . . Exploration | -11 -10 -10 -9 -9 -6 ------------- Run | Yrd Mat Sub Rec Scr Fac Turns Passed 19099 | 85 2118 2387 2308 7820 4381 Spaces Moved 8019 | 50 766 1185 902 3378 1738 Core 8 | 8 . . . . . Treads 6670 | 42 766 1185 902 3371 404 Legs 1093 | . . . . . 1093 Wheels 248 | . . . . 7 241 Hover . | . . . . . . Flight . | . . . . . . Fastest Speed 50 | 50 160 160 160 110 110 Average Speed 201 | 142 160 160 235 228 180 Slowest Speed 400 | 160 160 160 250 250 400 Overloaded Moves . | . . . . . . Propulsion Burnouts . | . . . . . . Robots Hopped 2 | . . . . 2 . Cave-ins Triggered . | . . . . . . Exploration Rate (%) 64 | 3 97 52 97 93 46 Regions Visited 5 Branch Regions 3 Pre-discovered Areas 6 | . 1 . 4 1 . Known Exits Taken 1 | . 1 . . . . Unknown Exits Taken 4 | 1 . 1 1 1 . Scrap Searched 7 | . . 2 . 5 . Spaces Dug 2 | . . . . . 2 Terrain Destroyed 241 | . . . 2 . 239 Melee 1 | . . . . . 1 Projectile 56 | . . . 2 . 54 AOE 184 | . . . . . 184 Terrain Rammed . | . . . . . . Walls Destroyed . | . . . . . . Machines Disabled . | . . . . . . Actions | -11 -10 -10 -9 -9 -6 --------- Run | Yrd Mat Sub Rec Scr Fac Total 10269 | 61 1590 1512 1076 3486 2544 Wait 1494 | . 749 170 155 15 405 Move 8010 | 49 765 1184 901 3373 1738 Hop 2 | . . . . 2 . Pick Up 132 | 6 18 24 4 30 50 Fast Attach 73 | 6 7 6 . 10 44 Attach 46 | . . 11 1 8 26 Detach 17 | . . 3 1 6 7 Swap 28 | . 2 5 4 2 15 Drop 112 | . 13 13 5 40 41 Fire 339 | . 35 85 5 . 214 Melee 12 | . . 11 . . 1 Ram . | . . . . . . Kick . | . . . . . . Crush 4 | . 1 . . . 3 Escape Stasis . | . . . . . . Rewire . | . . . . . . Trap . | . . . . . . Miscellaneous . | . . . . . . Route ------- -11/Scrapyard -10/Materials (discovered 6 exits: *Mat x3 / *Min x2 / *Sub) -10/Subcaves (discovered 3 exits: *Mat x2 / *Rec) -9/Recycling (discovered 2 exits: [*Fac] / *Scr) -9/Scraptown (discovered 2 exits: *Fac x2) -6/Factory (discovered 4 exits: [*Fac x3] / [*Low]) History --------- Turn | Location | Event 9 | -11/Scrapyard | Discovered new exit (range 14) 86 | -11/Scrapyard | Entered Materials 309 | -10/Materials | Build established: Mutant 407 | -10/Materials | Discovered new exit (range 16) 765 | -10/Materials | Discovered new exit (range 14) 865 | -10/Materials | Identified exit to Subcaves 899 | -10/Materials | Discovered new exit (range 16) 924 | -10/Materials | Learned Storage stockpile data 975 | -10/Materials | Learned Storage terminal intel 1017 | -10/Materials | Learned location of Recycling (-9) 1032 | -10/Materials | Discovered new exit (range 14) 1050 | -10/Materials | Identified exit to Mines 1074 | -10/Materials | Learned 4 Subcaves zone layouts 1087 | -10/Materials | Identified exit to Materials 1189 | -10/Materials | Learned 2 Storage zone layouts 1243 | -10/Materials | Learned location of 3 exits from Materials 2204 | -10/Materials | Entered Subcaves 2205 | -10/Subcaves | Identified exit to Materials 2225 | -10/Subcaves | Shifting Twisted Machinery released Spk. Treads 2226 | -10/Subcaves | Shifting Twisted Machinery released Sub. Machine Gun 2660 | -10/Subcaves | Learned 4 Materials zone layouts 2855 | -10/Subcaves | Curiously followed by a Cobbler waking with a query about "LVR3C" 3252 | -10/Subcaves | Discovered exit to Materials (range 8) 3277 | -10/Subcaves | Core integrity fell below 50% 4029 | -10/Subcaves | Discovered new exit (range 13) 4100 | -10/Subcaves | Shifting Twisted Machinery released Sub. Beam Cannon 4153 | -10/Subcaves | Shifting Twisted Machinery released Sub. Monowheel 4267 | -10/Subcaves | Core integrity fell below 20% 4297 | -10/Subcaves | Lost 3 parts (1u2w) 4371 | -10/Subcaves | Visited 4L-MR0's lab 4387 | -10/Subcaves | Found Arachnoskeleton 4591 | -10/Subcaves | Entered Recycling 5271 | -9/Recycling | Discovered new exit (range 16) 6852 | -9/Recycling | Scanned before Scraplab entrance 6875 | -9/Recycling | Entered Scraplab 6896 | -9/Recycling | Discovered new exit (range 2) 6899 | -9/Recycling | Entered Scraptown 6899 | -9/Scraptown | System corruption cleaned by C-Scrubber 7394 | -9/Scraptown | Scanned Subdweller tech in exchange for log data 7410 | -9/Scraptown | Learned location of 1 exit from Research 7414 | -9/Scraptown | Learned location of Armory (-4) 7415 | -9/Scraptown | Learned Factory terminal intel 7439 | -9/Scraptown | Discovered new exit (range 7) 8022 | -9/Scraptown | Visited Cave Peace 8081 | -9/Scraptown | Visited Shadow of the Wyrm 8131 | -9/Scraptown | Visited Assassins FH 8196 | -9/Scraptown | Visited Awakened 8264 | -9/Scraptown | Visited The Evicted 8326 | -9/Scraptown | Visited Symbiants 8396 | -9/Scraptown | Visited Fellowship of the Rings 8471 | -9/Scraptown | Visited UFD Registry 8471 | -9/Scraptown | Registered with UFD as "Softkit" 8611 | -9/Scraptown | Visited Analyses Database 8681 | -9/Scraptown | Visited Scrapoid Pod Storage 8794 | -9/Scraptown | Visited DA-N13 Charitable Foundation 8826 | -9/Scraptown | Found DCF Scrap (27 items) 9049 | -9/Scraptown | Visited Scrap Suit Storage 9139 | -9/Scraptown | Visited Abandonware Association 9202 | -9/Scraptown | Learned abandonware demo "HACKBUD.EXE" 9354 | -9/Scraptown | Visited Botcube Research 9417 | -9/Scraptown | Visited Chapter 10 9492 | -9/Scraptown | Visited Research Penetration Think Tank 10101 | -9/Scraptown | Visited Modified Component R&D 10278 | -9/Scraptown | Discovered new exit (range 3) 11473 | -9/Scraptown | Guru changed UFD alias to "Metabank" 14119 | -9/Scraptown | Found Botcube 14377 | -9/Scraptown | Botcube activated 14399 | -9/Scraptown | Botcube completed mutation into wheeled form, armed with 1 gun, 1 cannon. 14558 | -9/Scraptown | Found Scrapoid Pod 14719 | -9/Scraptown | Entered Factory 14719 | -6/Factory | Accompanied by 1 ally 14719 | -6/Factory | Evolved 8 slots: Propulsion x1, Utility x6, Weapon x1 14720 | -6/Factory | Loaded intel: 26 terminal locations 14722 | -6/Factory | Attached Arachnoskeleton, gained temporary slots: Propulsion x3 14750 | -6/Factory | Discovered new exit (range 15) 15074 | -6/Factory | Repaired Med. Armor Plating 15108 | -6/Factory | Repaired Hrd. Light Armor Plating 15245 | -6/Factory | Build established: Scavenger-Tank 15485 | -6/Factory | Botcube activated 15489 | -6/Factory | Botcube completed mutation into core form, armed with 1 cannon. 15927 | -6/Factory | Scrapoid Pod released 06F05-D (x5) 16133 | -6/Factory | Lost 3 allies 16375 | -6/Factory | P-70 Sage assimilated allied 06F02-D 16978 | -6/Factory | Lost 4 parts (3u1w) 17183 | -6/Factory | Discovered new exit (range 4) 17246 | -6/Factory | Build established: Tank 17367 | -6/Factory | Spotted B-75 Beast 17412 | -6/Factory | Destroyed B-75 Beast 17639 | -6/Factory | Repaired Hrd. Heavy Armor Plating 17678 | -6/Factory | Discovered new exit (range 15) 17854 | -6/Factory | Discovered new exit (range 15) 17943 | -6/Factory | Build established: Scavenger-Tank 18219 | -6/Factory | First assault squad dispatched 18331 | -6/Factory | Repaired Lyr. Medium Armor Plating 18419 | -6/Factory | System corruption reached 10% 18423 | -6/Factory | Core integrity fell below 50% 18463 | -6/Factory | Lost 7 parts (1p1n2u3w) 18713 | -6/Factory | Core integrity fell below 20% 18823 | -6/Factory | Lost 12 parts (2n6u4w) 19100 | -6/Factory | Destroyed by G-67 Veteran with Plasma Rifle Last Messages --------------- 19084_ >> FABRICATOR: Completed G-50 Soldier at (27,161). 19086_ System corrupted: Proton Cannon failed to cycle. 19087_ G-50 Soldier misfires. 19089_ Fusion Modulator explodes. 19089_ G-50 Soldier destroyed. 19089_ Fusion Modulator explodes. 19089_ Fabricator disabled. 19089_ G-50 Soldier destroyed. 19090_ C-30 ARC bursts open, deploying its payload. 19090_ G-67 Veteran unfolds itself. 19090_ G-50 Soldier unfolds itself. 19090_ E-15 Imp unfolds itself. 19090_ A-15 Conveyor calls for reinforcements. 19090_ ALERT: Hostile activity reported, dispatching reinforcements to area. 19092_ System corrupted: Energy discharge (-82). 19092_ E-15 Imp destroyed. 19095_ K-01 Serf collects debris. Map ----- +----------------------------------------------------+ | ????????????????## ##???????????????????????????? | | ????????????????## ###???????????????????????????? | | ????????????????## ###???????????????????????????? | | ????????????? #### #######???????????????????????? | | ????????????? ####+#######???????????????????????? | | ????????????? # ##???????????????????????? | | ????????????? # """ """ ##???????????????????????? | | ????????????? # """ """ ##???????????????????????? | | ????????????? # """ """ ##???????????????????????? | | ????????????? # ] ##???????????????????????? | | ????????????? # "T" ##???????????????????????? | | ????????????? # """ ##???????????????????????? | | T""""???? + ####?????????????????????? | | """""" #####+##+#####?? ?????????????????? | | ???######## ### % /## ?"" ????????????????? | | ???######## ??### gg ## """ ???????????????? | | ?????????## ? ##; gg ;# """?????????????????? | | ????????????? ##; *% ;# ?????????????????? | | ????????????? # ; ;; """ ??????????????? | | ????????????? ##; / ;# """ # ????????????? | | ????????????? # ; !%= ;# """?? # ????????????? | | ????????? # ? # ;k * ;# # ? # ????????? | | ????????? # ##;; ;;###+#### # ????????? | | ????????? # # ????????? | | ????????? # # ????????? | | ????????? t @ A # ????????? | | ????????? # ############+############# ????????? | | ????????? # ? ########### ### ????????? | | ????????? # ?????????????? ] ????????????????????? | | ?????????????????????????? ???????????????????? | | ??????????????????????????""""???????????????????? | | ??????????????????????????"""" ??????????????????? | | ???????????????????????????""" "?????????????????? | | ???????????????????????????""??""????????????????? | | ???????????T"????????????????????????????????????? | | ????????????"????????????????????????????????????? | | ?????????????????????????????????????????????????? | | ?????????????????????????????????????????????????? | | ?????????????????????????????????????????????????? | | ?????????????????????????????????????????????????? | | ?????????????????????????????????????????????????? | | ?????????????????????????????????????????????????? | | ?????????????????????????????????????????????????? | | ?????????????????????????????????????????????????? | | ?????????????????????????????????????????????????? | | ?????????????????????????????????????????????????? | | ?????????????????????????????????????????????????? | | ?????????????????????????????????????????????????? | | ?????????????????????????????????????????????????? | | ?????????????????????????????????????????????????? | +----------------------------------------------------+ Best States ------------- Heat Dissipation 113 Coolant Potential 50 Energy Generation 18 Energy Capacity 300 Matter Stores 300 Matter Capacity 300 Sight Range 21 Terrain Scan Density 10 Armor Coverage 1275 Resistance: KI 20 Resistance: TH 15 Phase Shifting 5 Evasion (%) 45 Targeting Accuracy 5 Core Analysis 6 Recoil Reduction 3 Kinecelleration 30 Offensive Hacking 10 Defensive Hacking 10 Item Schematics ----------------- None Robot Schematics ------------------ None Fabricated ------------ Nothing Alien Tech Used ----------------- None Achievements -------------- None Challenges ------------ None Game ------ Seed ImprovedReinforcedThruster Manual? 0 Play Time 02:23:53 Cumulative 282.0 hours Start 2025.01.18 @ 09:33:50 End 2025.01.18 @ 13:30:12 Sessions 3 Manual Loads 0 Difficulty Rogue Special Mode None Game No. 185 Rogue 146 Adventurer 6 Explorer 33 Win Type - Total 6 Types 5/0/1/0/0/0/0/0/0 Lore% 57 Gallery% 71 Achievement% 65 Wizard Run 0 Options --------- Layout 2 ASCII 1 Keyboard 1 Movement Vi Keybinds 0 Fullscreen 1 Font 16/T_Terminus Map View 53x45 Zoom Use 0% Tactical HUD 1 Map Filters NONE Filters LOW_CONTRAST(47,30,31) Steam 1 RUN: 334c6e6f-4a63-4e00-a258-7ccf85023fa4